bitfinex/quotes_BTCUSD_20250922
["timestamp","ask_amount","ask_price","bid_price","bid_amount"]
[1758561384232,0.33649948,112490.0,112480.0,0.77515495]
[1758561384442,0.33125948,112490.0,112480.0,0.77515495]
[1758561384648,0.005,112490.0,112480.0,0.72903495]
[1758561384877,0.33125948,112490.0,112480.0,0.82511495]
[1758561385415,0.33125948,112490.0,112480.0,0.77511495]
[1758561385617,0.33649948,112490.0,112480.0,0.44055495]
[1758561385820,0.35998948,112490.0,112480.0,0.39055495]
[1758561386019,0.03373,112490.0,112480.0,0.44055495]
[1758561386223,0.35998948,112490.0,112480.0,0.82507495]
[1758561386561,0.35998948,112490.0,112480.0,0.44055495]
[1758561386787,0.35998948,112490.0,112480.0,0.77507495]
[1758561386997,0.35998948,112490.0,112480.0,0.72899495]
[1758561387191,0.35998948,112490.0,112480.0,0.67895495]
[1758561387440,0.35998948,112490.0,112480.0,0.82503495]
[1758561387788,0.03373,112490.0,112480.0,0.82503495]
[1758561387991,0.35998948,112490.0,112480.0,0.82503495]
[1758561388388,0.35998948,112490.0,112480.0,0.44055495]
[1758561388769,0.35998948,112490.0,112480.0,0.77503495]
[1758561389171,0.35998948,112490.0,112480.0,0.82503495]
[1758561389496,0.35998948,112490.0,112480.0,0.77503495]
[1758561389697,0.35998948,112490.0,112480.0,0.82503495]
[1758561389928,0.33335948,112490.0,112480.0,0.82503495]
[1758561390323,0.33335948,112490.0,112480.0,0.64722557]
[1758561390575,0.36061948,112490.0,112480.0,0.72891495]
[1758561390773,0.36061948,112490.0,112480.0,0.82499495]
[1758561391293,0.68687896,112490.0,112480.0,0.39055495]
[1758561391443,0.68687896,112490.0,112480.0,0.67891495]
[1758561391645,0.36061948,112490.0,112480.0,0.77499495]
[1758561392631,0.36061948,112490.0,112480.0,0.21274557]
[1758561392632,0.68687896,112490.0,112480.0,0.21274557]
[1758561392883,0.68687896,112490.0,112480.0,0.27867367]
[1758561393188,0.68687896,112490.0,112480.0,0.59714557]
[1758561393595,1.02687896,112490.0,112480.0,0.47274157]
[1758561394152,1.05360587,112490.0,112480.0,0.47274157]
[1758561394399,0.40108691,112490.0,112480.0,0.47274157]
[1758561394553,1.05260587,112490.0,112480.0,0.46674157]
[1758561394749,1.05260587,112490.0,112480.0,0.46974157]
[1758561395040,1.05360587,112490.0,112480.0,0.54410623]
[1758561395911,1.04960587,112490.0,112480.0,0.53110623]
[1758561396109,1.05260587,112490.0,112480.0,0.53810623]
[1758561397626,0.40008691,112490.0,112480.0,0.53810623]
[1758561397880,1.05260587,112490.0,112480.0,0.53810623]
[1758561398237,0.70216639,112490.0,112480.0,0.71591561]
[1758561398440,0.33235948,112490.0,112480.0,0.71591561]
[1758561398662,0.35961948,112490.0,112480.0,0.71591561]
[1758561399554,0.03336,112490.0,112480.0,0.71591561]
[1758561399762,0.35961948,112490.0,112480.0,0.71591561]
[1758561401012,0.03336,112490.0,112480.0,0.71591561]
[1758561401215,0.35961948,112490.0,112480.0,0.71591561]
[1758561401422,0.68587896,112490.0,112480.0,0.71591561]
[1758561401630,0.68587896,112490.0,112480.0,0.42759561]
[1758561401875,0.68587896,112490.0,112480.0,0.53798623]
[1758561402092,0.03336,112490.0,112480.0,0.53798623]
[1758561402293,0.68587896,112490.0,112480.0,0.53798623]
[1758561402914,0.68587896,112490.0,112480.0,0.24978623]
[1758561403117,0.68587896,112490.0,112480.0,0.46362157]
[1758561405885,0.03336,112490.0,112480.0,0.46362157]
[1758561406088,0.68587896,112490.0,112480.0,0.64143095]
[1758561407470,0.68587896,112490.0,112480.0,0.35323095]
[1758561407580,0.68587896,112490.0,112480.0,0.73747095]
[1758561407790,0.68587896,112490.0,112480.0,0.82274062]
[1758561408824,0.68587896,112490.0,112480.0,0.64493124]
[1758561409657,0.68587896,112490.0,112480.0,0.26069124]
[1758561409866,0.68587896,112490.0,112480.0,0.46350157]
[1758561412441,0.68587896,112490.0,112480.0,0.64131095]
[1758561413009,0.004,112490.0,112480.0,0.64131095]
[1758561413231,0.33025948,112490.0,112480.0,0.64131095]
[1758561413440,0.33222948,112490.0,112480.0,0.35323095]
[1758561413641,0.33222948,112490.0,112480.0,0.79049655]
[1758561413642,0.35948948,112490.0,112480.0,0.79049655]
[1758561414081,0.004,112490.0,112480.0,0.79049655]
[1758561414288,0.33025948,112490.0,112480.0,0.79049655]
[1758561414660,0.33222948,112490.0,112480.0,0.79049655]
[1758561415068,0.33222948,112490.0,112480.0,0.22852717]
[1758561415277,0.00905,112490.0,112480.0,0.79049655]
[1758561415461,0.35948948,112490.0,112480.0,0.79049655]
[1758561415658,0.35948948,112490.0,112480.0,0.40633655]
[1758561415908,0.35948948,112490.0,112480.0,0.79045655]
[1758561417968,0.35948948,112490.0,112480.0,0.69433655]
[1758561418143,0.35948948,112490.0,112480.0,0.79041655]
[1758561419108,0.68574896,112490.0,112480.0,0.79041655]
[1758561419720,0.68574896,112490.0,112480.0,0.22852717]
[1758561419926,0.68574896,112490.0,112480.0,0.69425655]
[1758561420146,20.68574896,112490.0,112480.0,0.40633655]
[1758561420348,20.68574896,112490.0,112480.0,0.69425655]
[1758561420609,20.68574896,112490.0,112480.0,0.22852717]
[1758561420848,20.68574896,112490.0,112480.0,0.69425655]
[1758561421427,20.68574896,112490.0,112480.0,0.40633655]
[1758561421633,20.68574896,112490.0,112480.0,0.69421655]
[1758561424720,20.33530948,112490.0,112480.0,0.69421655]
[1758561424950,20.33025948,112490.0,112480.0,0.69421655]
[1758561425267,20.68619896,112490.0,112480.0,0.69421655]
[1758561426396,20.68619896,112490.0,112480.0,0.69417655]
[1758561426745,20.68619896,112490.0,112480.0,0.40633655]
[1758561426998,20.68619896,112490.0,112480.0,0.69413655]
[1758561427124,20.68619896,112490.0,112480.0,0.40633655]
[1758561427328,20.68619896,112490.0,112480.0,0.69413655]
[1758561428741,20.68619896,112490.0,112480.0,0.40633655]
[1758561429011,20.68619896,112490.0,112480.0,0.69409655]
[1758561429592,20.68619896,112490.0,112480.0,0.40633655]
[1758561429746,20.68619896,112490.0,112480.0,0.69409655]
[1758561430863,20.68619896,112490.0,112480.0,0.40633655]
[1758561431212,20.68619896,112490.0,112480.0,0.69405655]
[1758561432841,20.46874892,112490.0,112480.0,0.69405655]
[1758561433628,20.44424892,112490.0,112480.0,0.69405655]
[1758561433830,20.43906892,112490.0,112480.0,0.69405655]
[1758561436010,20.004,112490.0,112480.0,0.69405655]
[1758561436137,20.43906892,112490.0,112480.0,0.69405655]
[1758561436549,20.004,112490.0,112480.0,0.69405655]
[1758561437282,20.43906892,112490.0,112480.0,0.69405655]
[1758561439564,20.43906892,112490.0,112480.0,0.66390465]
[1758561439805,20.004,112490.0,112480.0,0.69405655]
[1758561440910,20.004,112490.0,112480.0,0.74405655]
[1758561441435,20.001,112490.0,112480.0,0.73705655]
[1758561441843,20.001,112490.0,112480.0,0.75205655]
[1758561441844,19.99253068,112490.0,112480.0,0.75205655]
[1758561442049,19.99253068,112490.0,112480.0,0.74905655]
[1758561442400,19.99253068,112490.0,112480.0,0.46733655]
[1758561442600,19.99353068,112490.0,112480.0,0.75485655]
[1758561442828,19.99353068,112490.0,112480.0,0.46733655]
[1758561443217,19.99353068,112490.0,112480.0,0.75485655]
[1758561443373,19.99353068,112490.0,112480.0,0.85097655]
[1758561444433,19.98035844,112490.0,112480.0,0.85097655]
[1758561444606,19.97087443,112490.0,112480.0,1.33604547]
[1758561446278,19.97087443,112490.0,112480.0,0.90097655]
[1758561446485,19.97087443,112490.0,112480.0,1.23988547]
[1758561446708,19.97087443,112490.0,112480.0,1.33600547]
[1758561447881,19.97087443,112490.0,112480.0,0.95240547]
[1758561448164,19.97087443,112490.0,112480.0,1.33592547]
[1758561449208,19.97087443,112490.0,112480.0,1.33588547]
[1758561450475,19.53966146,112490.0,112480.0,1.33588547]
[1758561450673,19.3256654,112490.0,112480.0,1.33588547]
[1758561451037,19.06736832,112490.0,112480.0,1.33588547]
[1758561451636,19.06236832,112490.0,112480.0,0.93140547]
[1758561451864,18.66288182,112490.0,112480.0,1.34184547]
[1758561452176,18.34961367,112490.0,112480.0,1.34184547]
[1758561452389,18.09109841,112490.0,112480.0,1.68184547]
[1758561452596,18.06440847,112490.0,112480.0,1.29840547]
[1758561452890,17.79102252,112490.0,112480.0,1.29840547]
[1758561453100,17.76433324,112490.0,112480.0,1.29840547]
[1758561453298,17.76433324,112490.0,112480.0,1.68180547]
[1758561453646,17.76433324,112490.0,112480.0,1.30750867]
[1758561454045,17.76433324,112490.0,112480.0,1.69086867]
[1758561454496,17.17718337,112490.0,112480.0,1.40118867]
[1758561454654,16.89016596,112490.0,112480.0,1.78454867]
[1758561454865,16.68878867,112490.0,112480.0,1.81126196]
[1758561455068,16.44940801,112490.0,112480.0,1.81126196]
[1758561455259,16.22088697,112490.0,112480.0,1.81126196]
[1758561455459,16.02404836,112490.0,112480.0,0.99283304]
[1758561455671,15.83238264,112490.0,112480.0,1.42790196]
[1758561455878,15.59969171,112490.0,112480.0,2.09954196]
[1758561456078,15.57300243,112490.0,112480.0,2.19562196]
[1758561456283,15.34134692,112490.0,112480.0,1.42790196]
[1758561456502,15.13717496,112490.0,112480.0,1.42790196]
[1758561456701,14.78959304,112490.0,112480.0,1.81122196]
[1758561456990,14.73621448,112490.0,112480.0,1.81122196]
[1758561457234,14.7095252,112490.0,112480.0,1.81122196]
[1758561457436,14.68283592,112490.0,112480.0,1.81122196]
[1758561457767,14.65614664,112490.0,112480.0,1.81122196]
[1758561457945,14.62945736,112490.0,112480.0,1.81122196]
[1758561458121,14.60276808,112490.0,112480.0,1.81122196]
[1758561458303,14.17490592,112490.0,112480.0,1.81122196]
[1758561458520,13.80869982,112490.0,112480.0,1.81122196]
[1758561458722,13.63535745,112490.0,112480.0,1.71510196]
[1758561458973,13.60866817,112490.0,112480.0,2.19558196]
[1758561459176,13.5819811,112490.0,112480.0,2.19558196]
[1758561459326,13.55529403,112490.0,112480.0,1.42790196]
[1758561459530,13.52860696,112490.0,112480.0,1.42790196]
[1758561459715,13.50191989,112490.0,112480.0,1.42790196]
[1758561459912,13.47523282,112490.0,112480.0,1.81114196]
[1758561460305,13.44854575,112490.0,112480.0,1.81114196]
[1758561460433,13.42185868,112490.0,112480.0,1.81114196]
[1758561460643,12.98424443,112490.0,112480.0,1.81114196]
[1758561460828,12.83494604,112490.0,112480.0,1.81114196]
[1758561461544,12.40321718,112490.0,112480.0,1.81114196]
[1758561461740,12.22381478,112490.0,112480.0,1.81114196]
[1758561461971,12.06519291,112490.0,112480.0,1.81114196]
[1758561462131,11.84863418,112490.0,112480.0,1.81114196]
[1758561462984,11.29585403,112490.0,112480.0,1.81114196]
[1758561463822,10.87806357,112490.0,112480.0,1.81114196]
[1758561464028,10.87806357,112490.0,112480.0,1.42790196]
[1758561464225,10.87806357,112490.0,112480.0,2.19546196]
[1758561465984,10.44537426,112490.0,112480.0,2.19546196]
[1758561466550,10.04381138,112490.0,112480.0,2.19546196]
[1758561466772,9.93573894,112490.0,112480.0,2.19546196]
[1758561467429,9.1104522,112490.0,112480.0,1.70728744]
[1758561467696,8.98482365,112490.0,112480.0,2.57742528]
[1758561467839,8.73049064,112490.0,112480.0,2.57742528]
[1758561468046,8.51714544,112490.0,112480.0,2.57742528]
[1758561468246,8.39068422,112490.0,112480.0,2.57742528]
[1758561468584,8.27327355,112490.0,112480.0,2.57742528]
[1758561468929,7.77142501,112490.0,112480.0,2.57742528]
[1758561469113,7.67929003,112490.0,112480.0,2.57742528]
[1758561469305,7.59741819,112490.0,112480.0,2.57742528]
[1758561469733,7.13352143,112490.0,112480.0,2.57742528]
[1758561469869,7.03603415,112490.0,112480.0,2.57730528]
[1758561470050,6.89118263,112490.0,112480.0,0.93972744]
[1758561470248,6.89118263,112490.0,112480.0,2.14219636]
[1758561470508,6.42713464,112490.0,112480.0,2.14219636]
[1758561470709,6.33512112,112490.0,112480.0,2.14219636]
[1758561471227,5.92844576,112490.0,112480.0,2.14219636]
[1758561471809,5.49852428,112490.0,112480.0,2.14219636]
[1758561472010,5.41962828,112490.0,112480.0,2.14219636]
[1758561473633,5.41962828,112490.0,112480.0,1.37479636]
[1758561473840,5.41962828,112490.0,112480.0,2.14215636]
[1758561474882,5.41962828,112490.0,112480.0,1.37479636]
[1758561475086,5.41962828,112490.0,112480.0,1.32272744]
[1758561475446,5.41962828,112490.0,112480.0,1.22660744]
[1758561475663,5.41962828,112490.0,112480.0,1.32268744]
[1758561475978,5.42174828,112490.0,112480.0,0.78694424]
[1758561476189,5.42496828,112490.0,112480.0,0.39007905]
[1758561476395,5.44967828,112490.0,112480.0,0.82303905]
[1758561476588,5.44967828,112490.0,112480.0,0.77303905]
[1758561476893,5.44967828,112490.0,112480.0,0.80319095]
[1758561477120,5.44967828,112490.0,112480.0,0.85319095]
[1758561477325,5.44967828,112490.0,112480.0,0.80319095]
[1758561477752,5.44967828,112490.0,112480.0,0.80315095]
[1758561478396,5.44967828,112490.0,112480.0,0.42023095]
[1758561478597,0.19684905,112480.0,112470.0,1.01782507]
[1758561478821,0.22590905,112480.0,112470.0,1.48601474]
[1758561479003,0.22590905,112480.0,112470.0,0.98601474]
[1758561479329,0.20201905,112480.0,112470.0,0.98601474]
[1758561479875,0.20201905,112480.0,112470.0,0.99901474]
[1758561480081,0.20501905,112480.0,112470.0,0.99901474]
[1758561480326,0.20293905,112480.0,112470.0,1.05801474]
[1758561480477,0.20293905,112480.0,112470.0,1.49308366]
[1758561480700,0.20293905,112480.0,112470.0,1.52323556]
[1758561480900,0.20293905,112480.0,112470.0,1.14031556]
[1758561481258,0.20601905,112480.0,112470.0,1.47323556]
[1758561481417,0.20601905,112480.0,112470.0,1.52323556]
[1758561482009,0.20601905,112480.0,112470.0,1.08816664]
[1758561482208,0.20084905,112480.0,112470.0,1.47323556]
[1758561482587,5.41462828,112490.0,112470.0,1.52323556]
[1758561482788,5.41462828,112490.0,112480.0,1.0828808]
[1758561482992,4.94229121,112490.0,112480.0,1.93384879]
[1758561483130,4.78577604,112490.0,112480.0,1.93384879]
[1758561483329,4.72580772,112490.0,112480.0,1.93384879]
[1758561483552,4.72580772,112490.0,112480.0,1.52549447]
[1758561483729,4.3250921,112490.0,112480.0,1.52549447]
[1758561483933,4.08365805,112490.0,112480.0,1.52549447]
[1758561484199,3.9894091,112490.0,112480.0,1.52549447]
[1758561484801,3.57733694,112490.0,112480.0,1.52549447]
[1758561485033,3.57733694,112490.0,112480.0,2.02549447]
[1758561485234,3.58150694,112490.0,112480.0,1.30362555]
[1758561485451,4.04046586,112490.0,112480.0,1.14591905]
[1758561485648,3.60939694,112490.0,112480.0,1.15491905]
[1758561485872,3.60939694,112490.0,112480.0,1.18507095]
[1758561486009,3.60939694,112490.0,112480.0,1.15491905]
[1758561486398,3.60939694,112490.0,112480.0,1.18507095]
[1758561486651,4.04446586,112490.0,112480.0,0.80223095]
[1758561486849,4.04446586,112490.0,112480.0,0.77207905]
[1758561487022,4.04446586,112490.0,112480.0,1.15487905]
[1758561487222,4.04446586,112490.0,112480.0,1.18503095]
[1758561487429,4.04446586,112490.0,112480.0,1.15487905]
[1758561488045,4.04446586,112490.0,112480.0,1.18503095]
[1758561488861,4.04446586,112490.0,112480.0,0.68503095]
[1758561490787,3.60939694,112490.0,112480.0,0.68503095]
[1758561490989,4.04446586,112490.0,112480.0,0.68503095]
[1758561491740,3.60939694,112490.0,112480.0,0.68503095]
[1758561491922,4.04446586,112490.0,112480.0,0.68503095]
[1758561492074,3.60939694,112490.0,112480.0,0.68503095]
[1758561492286,4.04446586,112490.0,112480.0,0.68503095]
[1758561492690,3.93563096,112490.0,112480.0,0.68503095]
[1758561493343,3.93563096,112490.0,112480.0,0.58891095]
[1758561493576,3.93563096,112490.0,112480.0,0.68499095]
[1758561493696,3.60939694,112490.0,112480.0,0.68499095]
[1758561493901,3.93563096,112490.0,112480.0,0.68499095]
[1758561495280,3.96235365,112490.0,112480.0,0.68499095]
[1758561497116,3.96235365,112490.0,112480.0,0.30223095]
[1758561497339,3.63611963,112490.0,112480.0,0.68495095]
[1758561497558,3.96235365,112490.0,112480.0,0.68495095]
[1758561497768,3.96235365,112490.0,112480.0,0.30223095]
[1758561497990,3.96235365,112490.0,112480.0,0.68491095]
[1758561498415,3.63611963,112490.0,112480.0,0.68491095]
[1758561498629,3.96235365,112490.0,112480.0,0.68491095]
[1758561499206,3.58033694,112490.0,112480.0,0.68491095]
[1758561499415,3.58033694,112490.0,112480.0,1.33737899]
[1758561500181,3.58033694,112490.0,112480.0,1.01114497]
[1758561504125,3.58033694,112490.0,112480.0,1.33737899]
[1758561504316,3.05901218,112490.0,112480.0,1.72737899]
[1758561504533,2.92242288,112490.0,112480.0,1.75409554]
[1758561504718,2.70870342,112490.0,112480.0,1.70409554]
[1758561504920,2.51480929,112490.0,112480.0,1.75409554]
[1758561505099,2.32920898,112490.0,112480.0,1.37141554]
[1758561505449,2.15895455,112490.0,112480.0,1.75401554]
[1758561505645,1.89547374,112490.0,112480.0,1.75401554]
[1758561505844,1.71788894,112490.0,112480.0,1.37141554]
[1758561506255,1.71788894,112490.0,112480.0,1.75397554]
[1758561507296,1.3041529,112490.0,112480.0,1.75397554]
[1758561507409,1.09607673,112490.0,112480.0,1.1015075]
[1758561507636,1.09607673,112490.0,112480.0,1.75397554]
[1758561507994,1.09607673,112490.0,112480.0,1.75393554]
[1758561508189,0.63889926,112490.0,112480.0,1.75393554]
[1758561508423,0.3323244,112490.0,112480.0,1.75393554]
[1758561508652,0.28357568,112490.0,112480.0,1.75393554]
[1758561509072,1e-08,112490.0,112480.0,1.75393554]
[1758561510040,1e-08,112490.0,112480.0,1.37141554]
[1758561510357,1e-08,112490.0,112480.0,2.13829554]
[1758561510713,0.32623402,112520.0,112510.0,0.17776197]
[1758561510714,0.02694,112520.0,112510.0,0.17776197]
[1758561510915,0.02694,112520.0,112510.0,0.67566354]
[1758561510916,0.02593703,112520.0,112510.0,0.67566354]
[1758561511122,0.02909703,112520.0,112510.0,1.00189756]
[1758561511533,0.02909703,112520.0,112510.0,0.67566354]
[1758561511785,0.02909703,112520.0,112510.0,0.29318354]
[1758561511958,0.02909703,112520.0,112510.0,0.29518354]
[1758561512171,0.02909703,112520.0,112510.0,0.36249135]
[1758561512372,0.04209703,112520.0,112510.0,0.65185135]
[1758561512576,0.01831703,112520.0,112510.0,1.07416537]
[1758561512778,0.01831703,112520.0,112510.0,0.36549135]
[1758561512982,0.01304703,112520.0,112510.0,0.74793135]
[1758561513381,0.01831703,112520.0,112510.0,0.74793135]
[1758561513979,0.01831703,112520.0,112510.0,1.07416537]
[1758561515693,0.01304703,112520.0,112510.0,1.07416537]
[1758561516801,0.01304703,112520.0,112510.0,1.07216537]
[1758561517209,0.01404703,112520.0,112510.0,1.07716537]
[1758561517664,0.00104703,112520.0,112510.0,1.07416537]
[1758561517874,0.00704703,112520.0,112510.0,1.07716537]
[1758561518037,0.00704703,112520.0,112510.0,0.75093135]
[1758561518627,0.00704703,112520.0,112510.0,1.07716537]
[1758561519043,0.00704703,112520.0,112510.0,0.69472537]
[1758561519245,0.01231703,112520.0,112510.0,0.36849135]
[1758561519450,0.00704703,112520.0,112510.0,1.07704537]
[1758561519652,0.01231703,112520.0,112510.0,1.07704537]
[1758561519857,0.03609703,112520.0,112510.0,0.36849135]
[1758561520067,0.03609703,112520.0,112510.0,0.69472537]
[1758561520271,0.03609703,112520.0,112510.0,1.07704537]
[1758561520479,0.03609703,112520.0,112510.0,0.75081135]
[1758561520664,0.36233105,112520.0,112510.0,0.75077135]
[1758561520834,0.03609703,112520.0,112510.0,0.75077135]
[1758561521244,0.03609703,112520.0,112510.0,1.07700537]
[1758561521416,0.01231703,112520.0,112510.0,0.75077135]
[1758561521608,0.03609703,112520.0,112510.0,0.75077135]
[1758561521814,0.03609703,112520.0,112510.0,1.07700537]
[1758561522273,0.03609703,112520.0,112510.0,0.75077135]
[1758561522482,0.03609703,112520.0,112510.0,0.69472537]
[1758561522712,0.03609703,112520.0,112510.0,1.07700537]
[1758561522895,0.00704703,112520.0,112510.0,1.07700537]
[1758561524270,0.03609703,112520.0,112510.0,0.75073135]
[1758561524700,0.03609703,112520.0,112510.0,0.36849135]
[1758561524833,0.03609703,112520.0,112510.0,0.75073135]
[1758561527024,0.03609703,112520.0,112510.0,0.75069135]
[1758561527651,0.03609703,112520.0,112510.0,0.36849135]
[1758561527876,0.03609703,112520.0,112510.0,0.75069135]
[1758561528655,0.03609703,112520.0,112510.0,0.36849135]
[1758561528656,0.01231703,112520.0,112510.0,0.36849135]
[1758561528814,0.36233105,112520.0,112510.0,0.36849135]
[1758561529204,0.36233105,112520.0,112510.0,0.75065135]
[1758561529620,0.03609703,112520.0,112510.0,0.75065135]
[1758561529824,0.36233105,112520.0,112510.0,0.75065135]
[1758561530031,0.00704703,112520.0,112510.0,0.75065135]
[1758561530204,0.00704703,112520.0,112510.0,1.07688537]
[1758561533066,0.00704703,112520.0,112510.0,0.75065135]
[1758561533370,0.00704703,112520.0,112510.0,1.07688537]
[1758561538090,0.36157105,112520.0,112510.0,0.46457135]
[1758561538300,0.36157105,112520.0,112510.0,0.75053135]
[1758561539244,0.03533703,112520.0,112510.0,0.75053135]
[1758561539446,0.03533703,112520.0,112510.0,0.36849135]
[1758561539642,0.03533703,112520.0,112510.0,0.75049135]
[1758561540533,0.03533703,112520.0,112510.0,0.36849135]
[1758561540735,0.03533703,112520.0,112510.0,0.75049135]
[1758561540942,0.03533703,112520.0,112510.0,0.65441135]
[1758561541282,0.03533703,112520.0,112510.0,0.75049135]
[1758561541678,0.03533703,112520.0,112510.0,1.07672537]
[1758561542270,0.00704703,112520.0,112510.0,1.07672537]
[1758561543030,0.00704703,112520.0,112510.0,0.75049135]
[1758561543282,0.00704703,112520.0,112510.0,1.07672537]
[1758561543721,0.00909703,112520.0,112510.0,1.07672537]
[1758561543927,0.03533703,112520.0,112510.0,0.36849135]
[1758561544138,0.03533703,112520.0,112510.0,1.07668537]
[1758561544719,0.03533703,112520.0,112510.0,0.69472537]
[1758561544922,0.36157105,112520.0,112510.0,0.75045135]
[1758561545213,0.03533703,112520.0,112510.0,0.75045135]
[1758561546218,0.03533703,112520.0,112510.0,0.36849135]
[1758561546444,0.03533703,112520.0,112510.0,0.75041135]
[1758561548019,0.36157105,112520.0,112510.0,0.65433135]
[1758561548234,0.68780507,112520.0,112510.0,0.36849135]
[1758561548636,0.68780507,112520.0,112510.0,0.72021945]
[1758561549250,0.68780507,112520.0,112510.0,0.75037135]
[1758561550719,0.68780507,112520.0,112510.0,0.65429135]
[1758561550928,0.68780507,112520.0,112510.0,0.75037135]
[1758561551129,0.68780507,112520.0,112510.0,0.36849135]
[1758561551339,0.68780507,112520.0,112510.0,0.75037135]
[1758561552763,0.4701425,112520.0,112510.0,0.75037135]
[1758561554837,0.00909703,112520.0,112510.0,0.75037135]
[1758561555081,0.03576703,112520.0,112510.0,0.75037135]
[1758561556246,0.01202703,112520.0,112510.0,0.75037135]
[1758561556463,0.00909703,112520.0,112510.0,0.75037135]
[1758561556666,0.03576703,112520.0,112510.0,0.75037135]
[1758561556873,0.4705725,112520.0,112510.0,0.75037135]
[1758561557406,0.03576703,112520.0,112510.0,0.75037135]
[1758561559506,0.00704703,112520.0,112510.0,0.75037135]
[1758561559714,0.00704703,112520.0,112510.0,0.65417135]
[1758561559922,0.00704703,112520.0,112510.0,0.75025135]
[1758561561577,0.00704703,112520.0,112510.0,0.36849135]
[1758561561757,0.00704703,112520.0,112510.0,0.75025135]
[1758561562162,0.00704703,112520.0,112510.0,1.18505682]
[1758561562673,0.00704703,112520.0,112510.0,0.75025135]
[1758561563610,0.00914703,112520.0,112510.0,0.36849135]
[1758561563937,0.03581703,112520.0,112510.0,0.36849135]
[1758561564079,0.03581703,112520.0,112510.0,0.75021135]
[1758561564636,0.4706225,112520.0,112510.0,0.36849135]
[1758561564843,0.4706225,112520.0,112510.0,0.65413135]
[1758561565063,0.4706225,112520.0,112510.0,0.75021135]
[1758561567353,0.03581703,112520.0,112510.0,0.75021135]
[1758561567576,0.4706225,112520.0,112510.0,0.75021135]
[1758561569399,0.03581703,112520.0,112510.0,0.75021135]
[1758561569603,0.4706225,112520.0,112510.0,0.75021135]
[1758561570972,0.03581703,112520.0,112510.0,0.75021135]
[1758561571179,0.4706225,112520.0,112510.0,0.75021135]
[1758561573051,0.4706225,112520.0,112510.0,0.36849135]
[1758561573259,0.4706225,112520.0,112510.0,0.75009135]
[1758561573465,0.03581703,112520.0,112510.0,0.75009135]
[1758561573678,0.4706225,112520.0,112510.0,0.75009135]
[1758561575528,0.4706225,112520.0,112510.0,0.36849135]
[1758561575728,0.4706225,112520.0,112510.0,0.75009135]
[1758561575932,0.03581703,112520.0,112510.0,0.75009135]
[1758561576159,0.4706225,112520.0,112510.0,0.36849135]
[1758561576361,0.4706225,112520.0,112510.0,0.75005135]
[1758561577455,0.03581703,112520.0,112510.0,0.75005135]
[1758561577641,0.4706225,112520.0,112510.0,0.75005135]
[1758561578435,0.4706225,112520.0,112510.0,0.75001135]
[1758561579071,0.00997703,112520.0,112510.0,0.75001135]
[1758561579296,0.00704703,112520.0,112510.0,1.18481682]
[1758561579788,0.00704703,112520.0,112510.0,0.75001135]
[1758561580234,0.00704703,112520.0,112510.0,1.18481682]
[1758561580619,0.00704703,112520.0,112510.0,1.08873682]
[1758561580772,0.00704703,112520.0,112510.0,1.18481682]
[1758561580985,0.00704703,112520.0,112510.0,0.75001135]
[1758561581202,0.00704703,112520.0,112510.0,1.18481682]
[1758561582241,0.00704703,112520.0,112510.0,0.80329682]
[1758561582442,0.00704703,112520.0,112510.0,1.18477682]
[1758561583748,0.02670882,112540.0,112530.0,0.20788228]
[1758561583959,0.05,112580.0,112560.0,0.17767669]
[1758561584202,0.84807178,112570.0,112560.0,0.17768301]
[1758561584451,0.51129178,112570.0,112560.0,0.54835268]
[1758561584641,0.47143808,112570.0,112560.0,0.54835268]
[1758561584859,0.81143808,112570.0,112560.0,0.54835268]
[1758561585006,0.83814424,112570.0,112560.0,0.54835268]
[1758561585349,0.83814424,112570.0,112560.0,0.61635746]
[1758561586342,0.83814424,112570.0,112560.0,0.64650936]
[1758561586343,0.04083877,112570.0,112560.0,0.64650936]
[1758561586700,0.51514424,112570.0,112560.0,0.64946936]
[1758561586912,0.51514424,112570.0,112560.0,0.36410936]
[1758561587207,0.51514424,112570.0,112560.0,0.74554936]
[1758561587346,0.51414424,112570.0,112560.0,0.36410936]
[1758561587576,0.51414424,112570.0,112560.0,0.36110936]
[1758561587577,0.49814424,112570.0,112560.0,0.36110936]
[1758561587777,1.32294971,112570.0,112560.0,0.43859445]
[1758561588015,1.32294971,112570.0,112560.0,0.28532]
[1758561588685,0.34,112560.0,112540.0,0.18658603]
[1758561588858,0.82480547,112560.0,112550.0,0.4389206]
[1758561589067,0.82680547,112560.0,112550.0,0.37058967]
[1758561589596,0.85252547,112560.0,112550.0,0.37058967]
[1758561589943,1.29933094,112560.0,112550.0,0.37058967]
[1758561590408,1.30133094,112560.0,112550.0,0.37058967]
[1758561590567,1.28933094,112560.0,112550.0,0.37058967]
[1758561590953,1.28933094,112560.0,112540.0,0.18658603]
[1758561590954,0.05,112550.0,112530.0,0.18661689]
[1758561591180,0.05,112550.0,112540.0,0.37054967]
[1758561591181,0.39,112550.0,112540.0,0.37054967]
[1758561591388,0.392,112550.0,112540.0,0.37054967]
[1758561591710,0.42193279,112550.0,112540.0,0.37054967]
[1758561591955,0.44443279,112550.0,112540.0,0.37054967]
[1758561592195,0.44490311,112550.0,112540.0,0.37054967]
[1758561592370,0.45690311,112550.0,112540.0,0.37354967]
[1758561592547,0.89170858,112550.0,112540.0,0.37354967]
[1758561592866,0.89170858,112550.0,112540.0,0.003]
[1758561594856,0.90822372,112550.0,112540.0,0.003]
[1758561595284,1.19346372,112550.0,112540.0,0.003]
[1758561597369,1.17690858,112550.0,112540.0,0.003]
[1758561597784,0.89170858,112550.0,112540.0,0.003]
[1758561598324,0.88170858,112550.0,112540.0,0.003]
[1758561598769,0.37918311,112550.0,112540.0,0.26598426]
[1758561598966,0.81398858,112550.0,112540.0,0.26598426]
[1758561600010,0.81902858,112550.0,112540.0,0.26598426]
[1758561600367,0.81606858,112550.0,112540.0,0.26598426]
[1758561600927,0.81902858,112550.0,112540.0,0.26598426]
[1758561602307,0.84279858,112550.0,112540.0,0.26598426]
[1758561602897,0.81902858,112550.0,112540.0,0.26598426]
[1758561604316,0.84279858,112550.0,112540.0,0.26598426]
[1758561604770,0.81902858,112550.0,112540.0,0.26598426]
[1758561605084,0.81606858,112550.0,112540.0,0.29613616]
[1758561605385,0.38126311,112550.0,112540.0,0.29613616]
[1758561605584,0.37918311,112550.0,112540.0,0.29613616]
[1758561605803,0.81902858,112550.0,112540.0,0.29613616]
[1758561605972,0.84279858,112550.0,112540.0,0.29613616]
[1758561607051,0.84279858,112550.0,112540.0,0.58121616]
[1758561608724,0.84279858,112550.0,112540.0,0.29613616]
[1758561608946,0.84279858,112550.0,112540.0,0.58121616]
[1758561609952,0.84279858,112550.0,112540.0,0.29613616]
[1758561610174,0.84279858,112550.0,112540.0,0.37330967]
[1758561610563,0.84279858,112550.0,112540.0,0.55102426]
[1758561611202,0.38214311,112550.0,112540.0,0.58117616]
[1758561611358,0.81398858,112550.0,112540.0,0.58117616]
[1758561611556,0.47398858,112550.0,112540.0,0.58117616]
[1758561611763,0.03918311,112550.0,112540.0,0.58117616]
[1758561616380,0.01247032,112550.0,112540.0,0.58117616]
[1758561617097,0.01247032,112550.0,112540.0,0.91700549]
[1758561618583,0.01247032,112550.0,112540.0,1.01292549]